lending/lending_fUSD_20260210
["ID","MTS","AMOUNT","RATE_DAILY","PERIOD"]
[404922619,1770687040741,-1000.0,0.00016321,2]
[404922620,1770687040750,-1000.0,0.00016321,2]
[404922621,1770687040760,-1000.0,0.00016321,2]
[404922622,1770687040769,-1000.0,0.00016321,2]
[404922623,1770687040778,-227.66530803,0.00016321,2]
[404922624,1770687040788,-1005.82893867,0.00016321,2]
[404922625,1770687040797,-501.05560458,0.00016321,2]
[404922626,1770687040806,-1000.0,0.00016321,2]
[404922627,1770687040815,-1005.4959813,0.00016321,2]
[404922628,1770687040825,-1000.0,0.00016321,2]
[404922629,1770687040834,-1002.07392204,0.00016321,2]
[404922630,1770687040843,-1000.0,0.00016321,2]
[404922631,1770687040852,-1000.0,0.00016321,2]
[404922632,1770687040862,-1003.38186604,0.00016321,2]
[404922633,1770687040871,-951.17883968,0.00016321,2]
[404922634,1770687040884,-500.0,0.00016363,2]
[404922635,1770687040894,-500.0,0.00016363,2]
[404922636,1770687040903,-500.0,0.00016363,2]
[404922637,1770687040912,-500.0,0.00016363,2]
[404922638,1770687040922,-500.0,0.00016363,2]
[404922639,1770687040931,-500.0,0.00016363,2]
[404922640,1770687040940,-163.32665534,0.00016363,2]
[404922641,1770687040949,-500.0,0.00016363,2]
[404922642,1770687040959,-500.0,0.00016363,2]
[404922643,1770687040967,-500.0,0.00016363,2]
[404922644,1770687040976,-500.0,0.00016363,2]
[404922645,1770687040986,-500.0,0.00016363,2]
[404922646,1770687040995,-500.0,0.00016363,2]
[404922647,1770687041004,-500.0,0.00016363,2]
[404922648,1770687041014,-500.0,0.00016363,2]
[404922649,1770687041026,-500.0,0.00016363,2]
[404922650,1770687041035,-500.0,0.00016363,2]
[404922651,1770687041044,-162.16917095,0.00016363,2]
[404922652,1770687041054,-500.0,0.00016363,2]
[404922653,1770687041064,-500.0,0.00016363,2]
[404922654,1770687041074,-500.0,0.00016363,2]
[404922655,1770687041083,-500.0,0.00016363,2]
[404922656,1770687041093,-500.0,0.00016363,2]
[404922657,1770687041102,-163.55316756,0.00016363,2]
[404922658,1770687041111,-500.0,0.00016363,2]
[404922659,1770687041121,-161.72727543,0.00016363,2]
[404922660,1770687041130,-500.0,0.00016363,2]
[404922661,1770687041145,-160.22890583,0.00016363,2]
[404922662,1770687041154,-182.9294021,0.00016363,2]
[404922663,1770687041162,-160.40758038,0.00016363,2]
[404922664,1770687041171,-157.74428972,0.00016363,2]
[404922665,1770687041182,-500.0,0.00016363,2]
[404922666,1770687041192,-500.0,0.00016363,2]
[404922667,1770687041201,-500.0,0.00016363,2]
[404922668,1770687041211,-500.0,0.00016363,2]
[404922669,1770687041221,-336.84619404,0.00016363,2]
[404922670,1770687041230,-307.81141901,0.00016363,2]
[404922671,1770687041240,-500.0,0.00016363,2]
[404922672,1770687041249,-500.0,0.00016363,2]
[404922673,1770687041258,-500.0,0.00016363,2]
[404922674,1770687041267,-500.62894029,0.00016363,2]
[404922675,1770687041276,-160.46433522,0.00016363,2]
[404922676,1770687041286,-500.0,0.00016363,2]
[404922677,1770687041295,-500.0,0.00016363,2]
[404922678,1770687041304,-500.0,0.00016363,2]
[404922679,1770687041314,-500.0,0.00016363,2]
[404922680,1770687041323,-500.0,0.00016363,2]
[404922681,1770687041332,-500.0,0.00016363,2]
[404922682,1770687041342,-500.0,0.00016363,2]
[404922683,1770687041351,-500.0,0.00016363,2]
[404922684,1770687041361,-500.0,0.00016363,2]
[404922685,1770687041370,-500.0,0.00016363,2]
[404922686,1770687041379,-500.0,0.00016363,2]
[404922687,1770687041388,-169.95855216,0.00016363,2]
[404922688,1770687041397,-209.12042357,0.00016363,2]
[404922689,1770687041406,-500.0,0.00016363,2]
[404922690,1770687041415,-500.0,0.00016363,2]
[404922691,1770687041423,-162.40423461,0.00016363,2]
[404922692,1770687041433,-500.0,0.00016363,2]
[404922693,1770687041442,-500.62859286,0.00016363,2]
[404922694,1770687041452,-500.0,0.00016363,2]
[404922695,1770687041461,-500.5176151,0.00016363,2]
[404922696,1770687041470,-503.4823527,0.00016363,2]
[404922697,1770687041479,-165.06463715,0.00016363,2]
[404922698,1770687041488,-513.28110237,0.00016363,2]
[404922699,1770687041497,-309.8323292,0.00016363,2]
[404922700,1770687041506,-500.0,0.00016363,2]
[404922701,1770687041515,-500.0,0.00016363,2]
[404922702,1770687041524,-500.0,0.00016363,2]
[404922703,1770687041533,-500.0,0.00016363,2]
[404922704,1770687041542,-500.0,0.00016363,2]
[404922705,1770687041551,-510.25449049,0.00016363,2]
[404922706,1770687041560,-450.29275883,0.00016363,2]
[404922707,1770687041569,-955.0,0.00016371,2]
[404922708,1770687041578,-200.0,0.00016371,2]
[404922709,1770687041587,-2874.28,0.00016422,2]
[404922710,1770687041597,-955.0,0.00016426,2]
[404922711,1770687041606,-200.0,0.00016426,2]
[404922712,1770687041615,-266.02436079,0.00016438,2]
[404922713,1770687041625,-4608.0,0.00016472,2]
[404922714,1770687041635,-955.0,0.00016481,2]
[404922715,1770687041647,-206.09414423,0.00016481,2]
[404922716,1770687041656,-286.68,0.00016521,2]
[404922717,1770687041666,-955.0,0.00016536,2]
[404922718,1770687041676,-16399.99,0.00016587,2]
[404922719,1770687041685,-955.0,0.0001659,2]
[404922720,1770687041694,-955.0,0.00016645,2]
[404922721,1770687041704,-340.86110096,0.00016662,2]
[404922722,1770687041714,-500.0,0.00016662,2]
[404922723,1770687041723,-411.7804555,0.00016662,2]
[404922724,1770687041732,-500.0,0.00016662,2]
[404922725,1770687041741,-649.49191646,0.00016662,2]
[404922726,1770687041751,-500.0,0.00016662,2]
[404922727,1770687041760,-955.0,0.000167,2]
[404922728,1770687041769,-1648.02162542,0.000167,2]
[404922729,1770687041778,-488.21099368,0.00016703,2]
[404922730,1770687041787,-204.24602948,0.00016707,2]
[404922731,1770687041795,-165.74,0.00016712,2]
[404922732,1770687041804,-510.0,0.00016722,2]
[404922733,1770687041814,-333.18,0.00016744,2]
[404922734,1770687041823,-955.0,0.00016755,2]
[404922735,1770687041832,-293.9689306,0.00016787,2]
[404922736,1770687041841,-286.68,0.00016795,2]
[404922737,1770687041850,-1765.46,0.00016807,2]
[404922738,1770687041859,-955.0,0.0001681,2]
[404922739,1770687041869,-1000.0,0.00016835,2]
[404922740,1770687041878,-955.0,0.00016864,2]
[404922741,1770687041888,-1524.81541825,0.00016868,2]
[404922742,1770687041899,-500.66593252,0.00016868,2]
[404922743,1770687041909,-1500.0,0.00016868,2]
[404922744,1770687041919,-1500.0,0.00016868,2]
[404922745,1770687041928,-1500.0,0.00016868,2]
[404922746,1770687041938,-314.04026957,0.00016868,2]
[404922747,1770687041947,-1500.0,0.00016868,2]
[404922748,1770687041958,-1500.0,0.00016868,2]
[404922749,1770687041967,-1000.0,0.0001691,2]
[404922750,1770687041976,-1000.0,0.0001691,2]
[404922751,1770687041985,-1000.0,0.0001691,2]
[404922752,1770687041995,-500.0,0.0001691,2]
[404922753,1770687042004,-1000.0,0.0001691,2]
[404922754,1770687042013,-1000.0,0.0001691,2]
[404922755,1770687042023,-512.37760017,0.0001691,2]
[404922756,1770687042031,-1000.0,0.0001691,2]
[404922757,1770687042041,-1000.0,0.0001691,2]
[404922758,1770687042050,-1000.0,0.0001691,2]
[404922759,1770687042059,-1000.0,0.0001691,2]
[404922760,1770687042068,-1000.0,0.0001691,2]
[404922761,1770687042078,-1000.0,0.0001691,2]
[404922762,1770687042087,-1000.0,0.0001691,2]
[404922763,1770687042097,-1000.0,0.0001691,2]
[404922764,1770687042107,-1000.0,0.0001691,2]
[404922765,1770687042117,-1000.0,0.0001691,2]
[404922766,1770687042126,-1000.0,0.0001691,2]
[404922767,1770687042136,-1000.0,0.0001691,2]
[404922768,1770687042150,-1000.0,0.0001691,2]
[404922769,1770687042160,-1000.0,0.0001691,2]
[404922770,1770687042170,-1000.0,0.0001691,2]
[404922771,1770687042179,-1000.0,0.0001691,2]
[404922772,1770687042188,-500.74996921,0.0001691,2]
[404922773,1770687042197,-1000.0,0.0001691,2]
[404922774,1770687042207,-1000.0,0.0001691,2]
[404922775,1770687042218,-1000.0,0.0001691,2]
[404922776,1770687042227,-501.46062698,0.0001691,2]
[404922777,1770687042237,-1000.0,0.0001691,2]
[404922778,1770687042247,-1000.0,0.0001691,2]
[404922779,1770687042256,-501.52639534,0.0001691,2]
[404922780,1770687042266,-1000.0,0.0001691,2]
[404922781,1770687042275,-501.02803094,0.0001691,2]
[404922782,1770687042285,-1000.0,0.0001691,2]
[404922783,1770687042294,-3240.0,0.00016915,2]
[404922784,1770687042303,-955.0,0.00016919,2]
[404922785,1770687042312,-955.0,0.00016974,2]
[404922786,1770687042322,-200.0,0.00016983,2]
[404922787,1770687042331,-572.35,0.00017,2]
[404922788,1770687042340,-6147.54124953,0.00017,2]
[404922789,1770687042349,-955.0,0.00017029,2]
[404922790,1770687042358,-1200.0,0.00017062,2]
[404922791,1770687042367,-172.0,0.00017062,2]
[404922792,1770687042377,-195.0,0.00017065,2]
[404922793,1770687042386,-500.0,0.00017065,2]
[404922794,1770687042397,-955.0,0.00017083,2]
[404922795,1770687042407,-150.0,0.00017084,2]
[404922796,1770687042416,-250.0,0.00017112,2]
[404922797,1770687042429,-600.0,0.00017112,2]
[404922798,1770687042438,-5000.0,0.00017112,2]
[404922799,1770687042447,-193.0,0.00017112,2]
[404922800,1770687042456,-250.0,0.00017112,2]
[404922801,1770687042465,-349.4680525,0.00017112,2]
[404922802,1770687042474,-900.0,0.00017124,2]
[404922803,1770687042485,-960.91117824,0.00017138,2]
[404922804,1770687042494,-1680.0,0.00017147,2]
[404922805,1770687042503,-300.0,0.00017159,2]
[404922806,1770687042512,-193.0,0.00017159,2]
[404922807,1770687042522,-300.0,0.00017159,2]
[404922808,1770687042532,-2874.28,0.00017168,2]
[404922809,1770687042542,-168.0,0.00017352,2]
[404922810,1770687042552,-168.0,0.00017364,2]
[404922811,1770687042561,-168.0,0.00017408,2]
[404922812,1770687042571,-2000.0,0.00017416,2]
[404922813,1770687042580,-2000.0,0.00017416,2]
[404922814,1770687042590,-475.51068713,0.00017416,2]
[404922815,1770687042600,-457.58788469,0.00017416,2]
[404922816,1770687042610,-2000.0,0.00017416,2]
[404922817,1770687042619,-1500.0,0.00017458,2]
[404922818,1770687042628,-1500.0,0.00017458,2]
[404922819,1770687042638,-1500.0,0.00017458,2]
[404922820,1770687042647,-1500.0,0.00017458,2]
[404922821,1770687042657,-1500.0,0.00017458,2]
[404922822,1770687042666,-909.97644074,0.00017458,2]
[404922823,1770687042675,-1500.0,0.00017458,2]
[404922824,1770687042684,-1500.0,0.00017458,2]
[404922825,1770687042693,-1500.0,0.00017458,2]
[404922826,1770687042702,-1627.75934903,0.00017458,2]
[404922827,1770687042712,-915.03397432,0.00017458,2]
[404922828,1770687042722,-457.10371252,0.00017458,2]
[404922829,1770687042731,-591.24941023,0.00017458,2]
[404922830,1770687042741,-1500.0,0.00017458,2]
[404922831,1770687042750,-508.73265454,0.00017458,2]
[404922832,1770687042759,-1500.0,0.00017458,2]
[404922833,1770687042768,-1500.0,0.00017458,2]
[404922834,1770687042778,-1500.0,0.00017458,2]
[404922835,1770687042787,-1500.0,0.00017458,2]
[404922836,1770687042796,-1500.0,0.00017458,2]
[404922837,1770687042806,-1500.0,0.00017458,2]
[404922838,1770687042815,-1500.0,0.00017458,2]
[404922839,1770687042825,-799.43512416,0.00017458,2]
[404922840,1770687042834,-1500.0,0.00017458,2]
[404922841,1770687042844,-1001.40404712,0.00017458,2]
[404922842,1770687042853,-1500.0,0.00017458,2]
[404922843,1770687042862,-1500.0,0.00017458,2]
[404922844,1770687042871,-155.51,0.00017493,2]
[404922845,1770687042880,-168.0,0.00017505,2]
[404922846,1770687042889,-476.91757724,0.00017521,2]
[404922847,1770687042900,-168.0,0.00017566,2]
[404922848,1770687042909,-168.0,0.0001757,2]
[404922849,1770687042918,-168.0,0.00017644,2]
[404922850,1770687042927,-168.0,0.00017653,2]
[404922851,1770687042936,-560.0,0.000177,2]
[404922852,1770687042946,-300.0,0.00017721,2]
[404922853,1770687042955,-666.0,0.00017721,2]
[404922854,1770687042964,-151.0,0.00017722,2]
[404922855,1770687042973,-151.0,0.00017722,2]
[404922856,1770687042983,-1208.0,0.00017722,2]
[404922857,1770687042992,-151.0,0.00017722,2]
[404922858,1770687043001,-151.0,0.00017722,2]
[404922859,1770687043010,-151.0,0.00017722,2]
[404922860,1770687043020,-151.0,0.00017722,2]
[404922861,1770687043029,-151.0,0.00017722,2]
[404922862,1770687043038,-300.0,0.00017735,2]
[404922863,1770687043047,-168.0,0.00017786,2]
[404922864,1770687043056,-3500.0,0.000178,6]
[404922865,1770687043066,-500.0,0.00017808,2]
[404922866,1770687043075,-500.0,0.00017808,2]
[404922867,1770687043085,-500.0,0.00017808,2]
[404922868,1770687043094,-500.0,0.00017808,2]
[404922869,1770687043104,-500.0,0.00017808,2]
[404922870,1770687043113,-500.0,0.00017808,2]
[404922871,1770687043123,-500.0,0.00017808,2]
[404922872,1770687043132,-500.0,0.00017808,2]
[404922873,1770687043147,-500.0,0.00017808,2]
[404922874,1770687043157,-500.0,0.00017808,2]
[404922875,1770687043166,-500.0,0.00017808,2]
[404922876,1770687043175,-500.0,0.00017808,2]
[404922877,1770687043185,-500.0,0.00017808,2]
[404922878,1770687043195,-500.0,0.00017808,2]
[404922879,1770687043204,-500.0,0.00017808,2]
[404922880,1770687043214,-500.0,0.00017808,2]
[404922881,1770687043224,-500.0,0.00017808,2]
[404922882,1770687043233,-500.0,0.00017808,2]
[404922883,1770687043243,-500.0,0.00017808,2]
[404922884,1770687043253,-500.0,0.00017808,2]
[404922885,1770687043262,-500.0,0.00017808,2]
[404922886,1770687043272,-500.0,0.00017808,2]
[404922887,1770687043281,-500.0,0.00017808,2]
[404922888,1770687043290,-500.0,0.00017808,2]
[404922889,1770687043299,-500.0,0.00017808,2]
[404922890,1770687043309,-500.0,0.00017808,2]
[404922891,1770687043319,-500.0,0.00017808,2]
[404922892,1770687043328,-500.0,0.00017808,2]
[404922893,1770687043338,-500.0,0.00017808,2]
[404922894,1770687043348,-500.0,0.00017808,2]
[404922895,1770687043358,-500.0,0.00017808,2]
[404922896,1770687043368,-500.0,0.00017808,2]
[404922897,1770687043377,-500.0,0.00017808,2]
[404922898,1770687043387,-500.0,0.00017808,2]
[404922899,1770687043396,-500.0,0.00017808,2]
[404922900,1770687043406,-500.0,0.00017808,2]
[404922901,1770687043415,-500.0,0.00017808,2]
[404922902,1770687043424,-263.35871911,0.00017808,2]
[404922903,1770687043434,-500.0,0.00017808,2]
[404922904,1770687043443,-500.0,0.00017808,2]
[404922905,1770687043452,-790.91453897,0.00017808,2]
[404922906,1770687043462,-790.91453897,0.00017808,2]
[404922907,1770687043471,-790.91453897,0.00017808,2]
[404922908,1770687043480,-790.91453897,0.00017808,2]
[404922909,1770687043490,-790.91453897,0.00017808,2]
[404922910,1770687043499,-790.91453897,0.00017808,2]
[404922911,1770687043509,-790.91453897,0.00017808,2]
[404922912,1770687043519,-790.91453897,0.00017808,2]
[404922913,1770687043529,-790.91453897,0.00017808,2]
[404922914,1770687043538,-790.91453897,0.00017808,2]
[404922915,1770687043547,-790.91453897,0.00017808,2]
[404922916,1770687043556,-790.91453897,0.00017808,2]
[404922917,1770687043566,-790.91453897,0.00017808,2]
[404922918,1770687043575,-790.91453897,0.00017808,2]
[404922919,1770687043584,-790.91453897,0.00017808,2]
[404922920,1770687043594,-790.91453897,0.00017808,2]
[404922921,1770687043603,-790.91453897,0.00017808,2]
[404922922,1770687043613,-790.91453897,0.00017808,2]
[404922923,1770687043622,-790.91453897,0.00017808,2]
[404922924,1770687043632,-790.91453897,0.00017808,2]
[404922925,1770687043641,-790.91453897,0.00017808,2]
[404922926,1770687043651,-790.91453897,0.00017808,2]
[404922927,1770687043660,-790.91453897,0.00017808,2]
[404922928,1770687043670,-790.91453897,0.00017808,2]
[404922929,1770687043679,-790.91453897,0.00017808,2]
[404922930,1770687043690,-790.91453897,0.00017808,2]
[404922931,1770687043701,-790.91453897,0.00017808,2]
[404922932,1770687043711,-790.91453897,0.00017808,2]
[404922933,1770687043720,-790.91453897,0.00017808,2]
[404922934,1770687043730,-790.91453897,0.00017808,2]
[404922935,1770687043739,-790.91453897,0.00017808,2]
[404922936,1770687043748,-790.91453897,0.00017808,2]
[404922937,1770687043758,-790.91453897,0.00017808,2]
[404922938,1770687043767,-790.91453897,0.00017808,2]
[404922939,1770687043776,-790.91453897,0.00017808,2]
[404922940,1770687043786,-790.91453897,0.00017808,2]
[404922941,1770687043795,-790.91453897,0.00017808,2]
[404922942,1770687043805,-790.91453897,0.00017808,2]
[404922943,1770687043815,-790.91453897,0.00017808,2]
[404922944,1770687043824,-790.91453897,0.00017808,2]
[404922945,1770687043834,-790.91453897,0.00017808,2]
[404922946,1770687043844,-790.91453897,0.00017808,2]
[404922947,1770687043854,-790.91453897,0.00017808,2]
[404922948,1770687043863,-790.91453897,0.00017808,2]
[404922949,1770687043872,-790.91453897,0.00017808,2]
[404922950,1770687043881,-790.91453897,0.00017808,2]
[404922951,1770687043891,-790.91453897,0.00017808,2]
[404922952,1770687043900,-790.91453897,0.00017808,2]
[404922953,1770687043911,-790.91453897,0.00017808,2]
[404922954,1770687043921,-500.0,0.00017808,2]
[404922955,1770687043930,-250.0,0.00017808,10]
[404922956,1770687043940,-250.0,0.00017808,10]
[404922957,1770687043949,-250.0,0.00017808,10]
[404922959,1770687043959,-250.0,0.00017808,10]
[404922961,1770687043968,-578.7037,0.0001782,2]
[404922963,1770687043977,-578.7037,0.0001782,2]
[404922965,1770687043987,-578.70371,0.0001782,2]
[404922967,1770687043996,-578.7037,0.0001782,2]
[404922969,1770687044007,-200.0,0.00017855,2]
[404922971,1770687044016,-200.0,0.00017856,2]
[404922973,1770687044025,-228.52770819,0.0001786,2]
[404922975,1770687044035,-500.0,0.00017863,2]
[404922977,1770687044044,-171.23,0.00017871,2]
[404922979,1770687044053,-204.24602948,0.000179,2]
[404922981,1770687044062,-3500.0,0.000179,6]
[404922983,1770687044072,-1648.02162542,0.000179,2]
[404922985,1770687044081,-214.06752898,0.00017906,3]
[404922987,1770687044090,-488.21099368,0.00017906,2]
[404922989,1770687044099,-182.05864982,0.00017906,2]
[404922991,1770687044108,-2874.28,0.00017915,2]
[404922993,1770687044117,-500.0,0.00017918,2]
[404922995,1770687044126,-812.0,0.00017923,2]
[404922997,1770687044135,-2500.0,0.00017964,2]
[404922999,1770687044147,-2500.0,0.00017964,2]
[404923002,1770687044157,-1002.39567754,0.00017964,2]
[404923004,1770687044166,-500.0,0.00017972,2]
[404923005,1770687044175,-160.0,0.00017985,2]
[404923008,1770687044186,-157.38,0.0001799,2]
[404923010,1770687044195,-215.51372333,0.0001799,2]
[404923012,1770687044205,-155.0,0.00017999,2]
[404923014,1770687044215,-1379101.80299351,0.00018,2]
[404923016,1770687044229,-1611891.95791066,0.00018,2]
[404923018,1770687044239,-1026.76595694,0.00018,2]
[404923020,1770687044248,-1000.0,0.00018,2]
[404923022,1770687044258,-1000.0,0.00018,2]
[404923024,1770687044267,-1000.0,0.00018,2]
[404923025,1770687044277,-1000.0,0.00018,2]
[404923026,1770687044286,-1000.0,0.00018,2]
[404923027,1770687044296,-1000.0,0.00018,2]
[404923028,1770687044306,-1000.0,0.00018,2]
[404923029,1770687044317,-1000.0,0.00018,2]
[404923043,1770687044482,-1000.0,0.00018,2]
[404923045,1770687044492,-1000.0,0.00018,2]
[404923047,1770687044502,-1000.0,0.00018,2]
[404923049,1770687044511,-1000.0,0.00018,2]
[404923052,1770687044521,-1000.0,0.00018,2]
[404923054,1770687044530,-1000.0,0.00018,2]
[404923056,1770687044539,-1000.0,0.00018,2]
[404923057,1770687044549,-1000.0,0.00018,2]
[404923059,1770687044559,-1000.0,0.00018,2]
[404923061,1770687044568,-1000.0,0.00018,2]
[404923064,1770687044577,-1000.0,0.00018,2]
[404923066,1770687044587,-1000.0,0.00018,2]
[404923067,1770687044596,-1000.0,0.00018,2]
[404923070,1770687044605,-1000.0,0.00018,2]
[404923072,1770687044615,-1000.0,0.00018,2]
[404923074,1770687044624,-153.1792721,0.00018,2]
[404923076,1770687044634,-152.388371,0.00018,2]
[404923077,1770687044643,-151.0,0.00018,2]
[404923079,1770687044654,-151.0,0.00018,2]
[404923082,1770687044664,-250.347347,0.00018,2]
[404923084,1770687044673,-250.347347,0.00018,2]
[404923086,1770687044683,-250.347347,0.00018,2]
[404923088,1770687044693,-250.347347,0.00018,2]
[404923090,1770687044702,-250.347347,0.00018,2]
[404923092,1770687044712,-250.347347,0.00018,2]
[404923094,1770687044721,-250.347347,0.00018,2]
[404923096,1770687044730,-250.347347,0.00018,2]
[404923098,1770687044740,-157.4624,0.00018,2]
[404923100,1770687044749,-151.0,0.00018,2]
[404923102,1770687044758,-170.066089,0.00018,2]
[404923104,1770687044768,-153.086108,0.00018,2]
[404923106,1770687044777,-151.0,0.00018,2]
[404923108,1770687044787,-151.0,0.00018,2]
[404923110,1770687044796,-151.0,0.00018,2]
[404923112,1770687044805,-151.0,0.00018,2]
[404923114,1770687044814,-151.0,0.00018,2]
[404923116,1770687044823,-151.0,0.00018,2]
[404923118,1770687044832,-187.595928,0.00018,2]
[404923120,1770687044841,-1822137.85828669,0.00018,2]
[404923122,1770687044850,-3582534.83145014,0.00018,2]
[404923136,1770687044976,-401.616215,0.00018,2]
[404923138,1770687044988,-218404.189124,0.00018,2]
[404923144,1770687045034,-1417456.80933896,0.00018,2]
[404923147,1770687045045,-559.16490317,0.00018,2]
[404923149,1770687045056,-3950.60752974,0.00018,2]
[404923151,1770687045070,-296451.55496263,0.00018,2]
[404923153,1770687045081,-809.0,0.00018,2]
[404923156,1770687045092,-303.77305737,0.00018,2]
[404923171,1770687045670,-151.0,0.000163,2]
[404923172,1770687045680,-1237.71941995,0.00016567,2]
[404923173,1770687045692,-2933.58524127,0.00016567,2]
[404923174,1770687045703,-493.50278704,0.00016567,2]
[404923175,1770687046161,-5859.80000033,0.00016567,2]
[404923176,1770687046173,-2020.869312,0.00016567,2]
[404923177,1770687046297,-5879.8462081,0.00016567,2]
[404923178,1770687046306,-37117.48456334,0.00018,2]
[404923191,1770687098990,5000.01,0.000155,2]
[404923192,1770687099015,5000.01,0.000155,2]
[404923193,1770687151111,731.51111376,0.00035616,120]
[404923197,1770687194703,150.0,0.00015473,2]
[404923198,1770687194969,200.0,0.000146,5]
[404923199,1770687197053,400.0,0.000147,5]
[404923200,1770687199139,600.0,0.000148,5]
[404923201,1770687201237,900.0,0.000149,5]
[404923202,1770687209540,767.84192432,0.000154,2]
[404923203,1770687211457,150.04,0.00035616,120]
[404923204,1770687225869,1982.16807568,0.000146,5]
[404923205,1770687225890,617.83192432,0.000146,5]
[404923206,1770687227975,4382.17807568,0.000147,5]
[404923207,1770687227996,917.82192432,0.000147,5]
[404923208,1770687230034,4082.18807568,0.000148,5]
[404923209,1770687230063,3817.81192432,0.000148,5]
[404923210,1770687232120,5000.01,0.000149,5]
[404923211,1770687232140,5000.01,0.000149,5]
[404923212,1770687232173,599.98,0.000149,5]
[404923213,1770687247909,1264.11372446,0.000154,2]
[404923216,1770687249468,214.7241389,0.000154,2]
[404923229,1770687290533,328.8176568,0.000154,2]
[404923230,1770687297969,639.86827025,0.000154,2]
[404923233,1770687312390,2160.7142078,0.000154,2]
[404923239,1770687317548,-7388.63705509,0.0001549,2]
[404923240,1770687317575,-300.0,0.00015498,2]
[404923241,1770687317604,-162.70633813,0.00015499,2]
[404923242,1770687317630,-300.0,0.00015499,2]
[404923243,1770687317655,-193.65011307,0.00015499,2]
[404923244,1770687317680,-1073.62720517,0.00015499,5]
[404923245,1770687317706,-1200.0,0.00015499,2]
[404923246,1770687317730,-175.0,0.00015499,2]
[404923247,1770687317755,-1316.12626123,0.00015499,5]
[404923248,1770687317782,-341.51320518,0.00015499,2]
[404923249,1770687317808,-12548.73982213,0.000155,2]
[404923250,1770687318897,-178.82681169,0.00015499,5]
[404923251,1770687318922,-10769.46127787,0.000155,2]
[404923252,1770687318950,-14051.71191044,0.000155,2]
[404923253,1770687319653,-25000.0,0.000155,2]
[404923254,1770687320378,-25000.0,0.000155,2]
[404923255,1770687321072,-25000.0,0.000155,2]
[404923256,1770687321760,-25000.0,0.000155,2]
[404923257,1770687322157,-25000.0,0.000155,2]
[404923258,1770687323046,-25000.0,0.000155,2]
[404923259,1770687323334,-25000.0,0.000155,2]
[404923261,1770687324148,-25000.0,0.000155,2]
[404923262,1770687324882,-25000.0,0.000155,2]
[404923263,1770687325293,-25000.0,0.000155,2]
[404923264,1770687326110,-25000.0,0.000155,2]
[404923265,1770687326614,-25000.0,0.000155,2]
[404923266,1770687327400,-25000.0,0.000155,2]
[404923267,1770687328101,-25000.0,0.000155,2]
[404923268,1770687328500,-25000.0,0.000155,2]
[404923269,1770687329322,-1063.54173058,0.00015499,5]
[404923270,1770687329349,-23936.45826942,0.000155,2]
[404923271,1770687330070,-25000.0,0.000155,2]
[404923272,1770687330790,-25000.0,0.000155,2]
[404923273,1770687331581,-25000.0,0.000155,2]
[404923274,1770687332530,-25000.0,0.000155,2]
[404923275,1770687333493,-25000.0,0.000155,2]
[404923276,1770687334286,-25000.0,0.000155,2]
[404923277,1770687335367,-25000.0,0.000155,2]
[404923278,1770687335893,-25000.0,0.000155,2]
[404923279,1770687336628,-155.735,0.00015499,2]
[404923280,1770687336655,-24844.265,0.000155,2]
[404923281,1770687337368,-25000.0,0.000155,2]
[404923282,1770687338181,-25000.0,0.000155,2]